bitfinex-derivatives/quotes_BNBF0:USTF0_20250315
["timestamp","ask_amount","ask_price","bid_price","bid_amount"]
[1742000182309,0.31089581,591.77,590.67,6.49759854]
[1742000184004,0.29443119,591.76,590.67,6.49759854]
[1742000184206,0.31089581,591.75,590.67,6.49759854]
[1742000186909,0.31089581,591.79,590.67,6.49759854]
[1742000187114,0.29443368,591.74,590.67,6.49759854]
[1742000187309,0.31089581,591.73,590.67,6.49759854]
[1742000187708,0.29443368,591.74,590.67,6.49759854]
[1742000187912,0.31084601,591.73,590.67,6.49759854]
[1742000189509,0.29443368,591.74,590.67,6.49759854]
[1742000189711,0.31084259,591.73,590.67,6.49759854]
[1742000189912,0.31084259,591.79,590.67,6.49759854]
[1742000190114,0.2944287,591.73,590.67,6.49759854]
[1742000190317,0.31084259,591.72,590.67,6.49759854]
[1742000191620,0.31084335,591.71,590.67,6.49759854]
[1742000191819,0.31084335,591.72,590.67,6.49759854]
[1742000192019,0.31084335,591.71,590.67,6.49759854]
[1742000192324,0.31084335,591.72,590.67,6.49759854]
[1742000192520,0.31084335,591.71,590.67,6.49759854]
[1742000192820,0.2944287,591.73,590.67,6.49759854]
[1742000192821,0.31084335,591.7,590.67,6.49759854]
[1742000193121,0.31084335,591.69,590.67,6.49759854]
[1742000193421,0.33795201,591.8,590.67,6.49759854]
[1742000193627,0.31085268,591.79,590.67,6.49759854]
[1742000193826,0.29444365,591.68,590.67,6.49759854]
[1742000194127,0.31085268,591.67,590.67,6.49759854]
[1742000194321,0.31085268,591.66,590.67,6.49759854]
[1742000194518,0.31085268,591.65,590.67,6.49759854]
[1742000194718,0.31085268,591.64,590.67,6.49759854]
[1742000194921,0.31085268,591.79,590.67,6.49759854]
[1742000195123,0.31085268,591.78,590.67,6.49759854]
[1742000195319,0.31085268,591.79,590.67,6.49759854]
[1742000195920,0.2944561,591.78,590.67,6.49759854]
[1742000196119,0.31085268,591.77,590.67,6.49759854]
[1742000197222,0.64888848,591.76,590.67,6.49759854]
[1742000197423,0.33798056,591.75,590.67,6.49759854]
[1742000197623,0.31091363,591.74,590.67,6.49759854]
[1742000197825,0.6488999,591.74,590.67,6.49759854]
[1742000198024,0.31091363,591.73,590.67,6.49759854]
[1742000199126,0.60538802,591.72,590.67,6.49759854]
[1742000199424,0.31091448,591.71,590.67,6.49759854]
[1742000202129,0.60539052,591.7,590.67,6.49759854]
[1742000202425,0.31091448,591.69,590.67,6.49759854]
[1742000204629,0.31091373,591.68,590.67,6.49759854]
[1742000204824,0.31091373,591.69,590.67,6.49759854]
[1742000205029,0.60539226,591.68,590.67,6.49759854]
[1742000205331,0.31091373,591.67,590.67,6.49759854]
[1742000206729,0.31091224,591.66,590.67,6.49759854]
[1742000206928,0.31091224,591.67,590.67,6.49759854]
[1742000207223,0.31091224,591.66,590.67,6.49759854]
[1742000207428,0.31091224,591.65,590.67,6.49759854]
[1742000207625,0.31091224,591.64,590.67,6.49759854]
[1742000207830,0.31091224,591.67,590.67,6.49759854]
[1742000208029,0.31091224,591.66,590.67,6.49759854]
[1742000208326,0.31091224,591.65,590.67,6.49759854]
[1742000208531,0.31091224,591.73,590.67,6.49759854]
[1742000208723,0.31091224,591.64,590.67,6.49759854]
[1742000208926,0.31091224,591.63,590.67,6.49759854]
[1742000209125,0.31091224,591.73,590.67,6.49759854]
[1742000209327,0.33798627,591.74,590.67,6.49759854]
[1742000209328,0.31091224,591.72,590.67,6.49759854]
[1742000209526,0.31091224,591.73,590.67,6.49759854]
[1742000209726,0.31091224,591.72,590.67,6.49759854]
[1742000209925,0.31091224,591.73,590.67,6.49759854]
[1742000210129,0.31091224,591.72,590.67,6.49759854]
[1742000210328,0.31091224,591.73,590.67,6.49759854]
[1742000210628,0.31091224,591.72,590.67,6.49759854]
[1742000210824,0.31091224,591.73,590.67,6.49759854]
[1742000211028,0.60536834,591.72,590.67,6.49759854]
[1742000211229,0.31091224,591.71,590.67,6.49759854]
[1742000213928,0.31091224,591.73,590.67,6.49759854]
[1742000214129,0.29445859,591.7,590.67,6.49759854]
[1742000214330,0.31091224,591.69,590.67,6.49759854]
[1742000216930,0.31091224,591.73,590.67,6.49759854]
[1742000217126,0.29446109,591.68,590.67,6.49759854]
[1742000217327,0.31091224,591.67,590.67,6.49759854]
[1742000220032,0.31091224,591.73,590.67,6.49759854]
[1742000220231,0.29446358,591.66,590.67,6.49759854]
[1742000220428,0.31090804,591.65,590.67,6.49759854]
[1742000220632,0.31090804,591.64,590.67,6.49759854]
[1742000220832,0.31090804,591.73,590.67,6.49759854]
[1742000221035,0.33798627,591.74,590.67,6.49759854]
[1742000221236,0.31091443,591.73,590.67,6.49759854]
[1742000222437,0.29447105,591.72,590.67,6.49759854]
[1742000222737,0.31091443,591.71,590.67,6.49759854]
[1742000222939,0.33798627,591.74,590.67,6.49759854]
[1742000223135,0.29446981,591.71,590.67,6.49759854]
[1742000223336,0.31090823,591.7,590.67,6.49759854]
[1742000226032,0.29447728,591.69,590.67,6.49759854]
[1742000226437,0.3109027,591.68,590.67,6.49759854]
[1742000227435,0.31090729,591.67,590.67,6.49759854]
[1742000227640,0.3109024,591.66,590.67,6.49759854]
[1742000227938,0.3109024,591.65,590.67,6.49759854]
[1742000228338,0.3109024,591.64,590.67,6.49759854]
[1742000228636,0.3109024,591.63,590.67,6.49759854]
[1742000229037,0.3109024,591.62,590.67,6.49759854]
[1742000231938,0.3109024,591.73,590.67,6.49759854]
[1742000232139,0.29446731,591.61,590.67,6.49759854]
[1742000232337,0.3109024,591.6,590.67,6.49759854]
[1742000232535,0.3109024,591.73,590.67,6.49759854]
[1742000232740,0.3109024,591.72,590.67,6.49759854]
[1742000232941,0.3109024,591.73,590.67,6.49759854]
[1742000233139,0.3109024,591.72,590.67,6.49759854]
[1742000233334,0.3109024,591.73,590.67,6.49759854]
[1742000233941,0.60533922,591.72,590.67,6.49759854]
[1742000234141,0.31089059,591.71,590.67,6.49759854]
[1742000235044,0.60534171,591.7,590.67,6.49759854]
[1742000235245,0.31089059,591.69,590.67,6.49759854]
[1742000235640,0.29445112,591.7,590.67,6.49759854]
[1742000235841,0.31089445,591.69,590.67,6.49759854]
[1742000236246,0.29445112,591.7,590.67,6.49759854]
[1742000236441,0.31089201,591.69,590.67,6.49759854]
[1742000237747,0.31089231,591.68,590.67,6.49759854]
[1742000237947,0.31089231,591.73,590.67,6.49759854]
[1742000240944,0.29444863,591.72,590.67,6.49759854]
[1742000241152,0.31089231,591.71,590.67,6.49759854]
[1742000241353,0.31089868,591.7,590.67,6.49759854]
[1742000241550,0.31089868,591.69,590.67,6.49759854]
[1742000241752,0.31089868,591.71,590.67,6.49759854]
[1742000241947,0.31089868,591.7,590.67,6.49759854]
[1742000242251,0.31089868,591.69,590.67,6.49759854]
[1742000242453,0.31089868,591.71,590.67,6.49759854]
[1742000242653,0.31089868,591.7,590.67,6.49759854]
[1742000242953,0.31089868,591.69,590.67,6.49759854]
[1742000243156,0.31089868,591.68,590.67,6.49759854]
[1742000243355,0.31089868,591.71,590.67,6.49759854]
[1742000244046,0.6053498,591.7,590.67,6.49759854]
[1742000244254,0.31089868,591.69,590.67,6.49759854]
[1742000247158,0.29445859,591.68,590.67,6.49759854]
[1742000247558,0.31089868,591.67,590.67,6.49759854]
[1742000249956,0.31089868,591.73,590.67,6.49759854]
[1742000250157,0.29446358,591.66,590.67,6.49759854]
[1742000250359,0.31089868,591.65,590.67,6.49759854]
[1742000250564,0.33798627,591.74,590.67,6.49759854]
[1742000250759,0.31090196,591.73,590.67,6.49759854]
[1742000253062,0.2944561,591.72,590.67,6.49759854]
[1742000253258,0.31090196,591.71,590.67,6.49759854]
[1742000256367,0.2944561,591.72,590.67,6.49759854]
[1742000256560,0.31089728,591.71,590.67,6.49759854]
[1742000258265,0.31089758,591.7,590.67,6.49759854]
[1742000258462,0.31089758,591.71,590.67,6.49759854]
[1742000258667,0.2944561,591.72,590.67,6.49759854]
[1742000258668,0.31089758,591.7,590.67,6.49759854]
[1742000258967,0.31089758,591.69,590.67,6.49759854]
[1742000259166,0.31089758,591.73,590.67,6.49759854]
[1742000259367,0.31089758,591.72,590.67,6.49759854]
[1742000259666,0.31089758,591.71,590.67,6.49759854]
[1742000259967,0.31089758,591.7,590.67,6.49759854]
[1742000260361,0.31089758,591.69,590.67,6.49759854]
[1742000260564,0.31089758,591.68,590.67,6.49759854]
[1742000260865,0.31089758,591.67,590.67,6.49759854]
[1742000264970,0.31089758,591.66,590.67,6.49759854]
[1742000265166,0.31089758,591.65,590.67,6.49759854]
[1742000268076,0.31089758,591.64,590.67,6.49759854]
[1742000268275,0.31089758,591.73,590.67,6.49759854]
[1742000268475,0.31089758,591.72,590.67,6.49759854]
[1742000268672,0.31089758,591.73,590.67,6.49759854]
[1742000268869,0.31089758,591.72,590.67,6.49759854]
[1742000269074,0.31089758,591.71,590.67,6.49759854]
[1742000269278,0.31089758,591.73,590.67,6.49759854]
[1742000269478,0.31089758,591.72,590.67,6.49759854]
[1742000269776,0.31089758,591.71,590.67,6.49759854]
[1742000269975,0.2944561,591.71,590.67,6.49759854]
[1742000270171,0.31089758,591.7,590.67,6.49759854]
[1742000271077,0.29445984,591.69,590.67,6.49759854]
[1742000271277,0.31091305,591.68,590.67,6.49759854]
[1742000272975,0.29445984,591.69,590.67,6.49759854]
[1742000273175,0.31091153,591.68,590.67,6.49759854]
[1742000273984,0.31091153,591.73,590.67,6.49759854]
[1742000274180,0.33798627,591.74,590.67,6.49759854]
[1742000274181,0.29446233,591.67,590.67,6.49759854]
[1742000274383,0.31091153,591.66,590.67,6.49759854]
[1742000276980,0.33798627,591.74,590.67,6.49759854]
[1742000277181,0.2944561,591.65,590.67,6.49759854]
[1742000277585,0.33798627,591.74,590.67,6.49759854]
[1742000277787,0.31090549,591.73,590.67,6.49759854]
[1742000279989,0.2944561,591.72,590.67,6.49759854]
[1742000280190,0.31090549,591.71,590.67,6.49759854]
[1742000280390,0.2944561,591.72,590.67,6.49759854]
[1742000280586,0.31089948,591.71,590.67,6.49759854]
[1742000283193,0.60535807,591.7,590.67,6.49759854]
[1742000283393,0.31089948,591.69,590.67,6.49759854]
[1742000285593,0.31088858,591.68,590.67,6.49759854]
[1742000285793,0.31088858,591.69,590.67,6.49759854]
[1742000285994,0.31088858,591.68,590.67,6.49759854]
[1742000286194,0.29446109,591.67,590.67,6.49759854]
[1742000286399,0.31088858,591.66,590.67,6.49759854]
[1742000287693,0.29446109,591.67,590.67,6.49759854]
[1742000287896,0.31088254,591.66,590.67,6.49759854]
[1742000289194,0.31088655,591.65,590.67,6.49759854]
[1742000289489,0.31088655,591.66,590.67,6.49759854]
[1742000289691,0.31088655,591.65,590.67,6.49759854]
[1742000289991,0.31088655,591.64,590.67,6.49759854]
[1742000290192,0.31088655,591.66,590.67,6.49759854]
[1742000290393,0.31088655,591.63,590.67,6.49759854]
[1742000290592,0.31088655,591.62,590.67,6.49759854]
[1742000290791,0.31088655,591.61,590.67,6.49759854]
[1742000290995,0.31088655,591.66,590.67,6.49759854]
[1742000291190,0.31088413,591.65,590.67,6.49759854]
[1742000291391,0.29446109,591.67,590.67,6.49759854]
[1742000291392,0.31088413,591.66,590.67,6.49759854]
[1742000291591,0.31088413,591.65,590.67,6.49759854]
[1742000291896,0.31088413,591.64,590.67,6.49759854]
[1742000292097,0.31088413,591.63,590.67,6.49759854]
[1742000292305,0.29444987,591.64,590.67,6.49759854]
[1742000292599,0.31088413,591.63,590.67,6.49759854]
[1742000294798,0.31088383,591.62,590.67,6.49759854]
[1742000294994,0.33798627,591.74,590.67,6.49759854]
[1742000294995,0.31088383,591.61,590.67,6.49759854]
[1742000295198,0.29445237,591.62,590.67,6.49759854]
[1742000295501,0.31088383,591.61,590.67,6.49759854]
[1742000296401,0.29445237,591.62,590.67,6.49759854]
[1742000296596,0.31088336,591.6,590.67,6.49759854]
[1742000296798,0.31088336,591.59,590.67,6.49759854]
[1742000296996,0.31088336,591.61,590.67,6.49759854]
[1742000297302,0.31088336,591.6,590.67,6.49759854]
[1742000297498,0.31088336,591.59,590.67,6.49759854]
[1742000297698,0.31088336,591.61,590.67,6.49759854]
[1742000297898,0.31088336,591.6,590.67,6.49759854]
[1742000298196,0.29446856,591.6,590.67,6.49759854]
[1742000298500,0.31089442,591.59,590.67,6.49759854]
[1742000304005,0.31089442,591.73,590.67,6.49759854]
[1742000304306,0.29449099,591.58,590.67,6.49759854]
[1742000304600,0.31089442,591.57,590.67,6.49759854]
[1742000304806,0.31089442,591.73,590.67,6.49759854]
[1742000305000,0.31089442,591.72,590.67,6.49759854]
[1742000305205,0.31089442,591.71,590.67,6.49759854]
[1742000305401,0.31089442,591.73,590.67,6.49759854]
[1742000305606,0.31089442,591.72,590.67,6.49759854]
[1742000305907,0.31089442,591.71,590.67,6.49759854]
[1742000307007,0.31089442,591.73,590.67,6.49759854]
[1742000307208,0.29447604,591.7,590.67,6.49759854]
[1742000307408,0.31089442,591.69,590.67,6.49759854]
[1742000310010,0.29447853,591.68,590.67,6.49759854]
[1742000310407,0.31089442,591.67,590.67,6.49759854]
[1742000311312,0.31091908,591.66,590.67,6.49759854]
[1742000311612,0.31091908,591.67,590.67,6.49759854]
[1742000311911,0.31091908,591.66,590.67,6.49759854]
[1742000312104,0.31091908,591.67,590.67,6.49759854]
[1742000312311,0.31091908,591.66,590.67,6.49759854]
[1742000312505,0.31091908,591.67,590.67,6.49759854]
[1742000312707,0.31091908,591.66,590.67,6.49759854]
[1742000312911,0.31091908,591.67,590.67,6.49759854]
[1742000313109,0.29448102,591.65,590.67,6.49759854]
[1742000313311,0.31091908,591.64,590.67,6.49759854]
[1742000316912,0.3109227,591.63,590.67,6.49759854]
[1742000317109,0.3109227,591.62,590.67,6.49759854]
[1742000317313,0.3109227,591.64,590.67,6.49759854]
[1742000317510,0.3109227,591.63,590.67,6.49759854]
[1742000317813,0.3109227,591.62,590.67,6.49759854]
[1742000318010,0.3109227,591.64,590.67,6.49759854]
[1742000318209,0.3109227,591.63,590.67,6.49759854]
[1742000318410,0.3109227,591.62,590.67,6.49759854]
[1742000318615,0.3109227,591.64,590.67,6.49759854]
[1742000318809,0.3109227,591.63,590.67,6.49759854]
[1742000319216,0.29448476,591.63,590.67,6.49759854]
[1742000319414,0.31090036,591.62,590.67,6.49759854]
[1742000321517,0.29448476,591.63,590.67,6.49759854]
[1742000327822,0.33798627,591.74,590.67,6.49759854]
[1742000329926,0.29435274,591.73,590.67,6.49759854]
[1742000330828,0.33798627,591.74,590.67,6.49759854]
[1742000331227,0.29446109,591.72,590.67,6.49759854]
[1742000331527,0.31090061,591.71,590.67,6.49759854]
[1742000331724,0.31090091,591.7,590.67,6.49759854]
[1742000331922,0.31090091,591.71,590.67,6.49759854]
[1742000332329,0.29446109,591.72,590.67,6.49759854]
[1742000333932,0.33798627,591.74,590.67,6.49759854]
[1742000334229,0.29444614,591.71,590.67,6.49759854]
[1742000336833,0.33798627,591.74,590.67,6.49759854]
[1742000337033,0.29444614,591.7,590.67,6.49759854]
[1742000339834,0.33798627,591.74,590.67,6.49759854]
[1742000341937,0.29432411,591.73,590.67,6.49759854]
[1742000343037,0.33798627,591.74,590.67,6.49759854]
[1742000343631,0.31083037,591.73,590.67,6.49759854]
[1742000344240,0.31083034,591.72,590.67,6.49759854]
[1742000344533,0.31083034,591.71,590.67,6.49759854]
[1742000344736,0.31083034,591.73,590.67,6.49759854]
[1742000344933,0.29442372,591.71,590.67,6.49759854]
[1742000345137,0.31083034,591.7,590.67,6.49759854]
[1742000346137,0.60525779,591.69,590.67,6.49759854]
[1742000346339,0.31083034,591.68,590.67,6.49759854]
[1742000347841,0.29442745,591.69,590.67,6.49759854]
[1742000348040,0.31083073,591.68,590.67,6.49759854]
[1742000349138,0.29442994,591.67,590.67,6.49759854]
[1742000350637,0.31081938,591.66,590.67,6.49759854]
[1742000351644,0.29442994,591.67,590.67,6.49759854]
[1742000351845,0.31081989,591.66,590.67,6.49759854]
[1742000352040,0.31081989,591.65,590.67,6.49759854]
[1742000353544,0.31081591,591.64,590.68,0.3385928]
[1742000353739,2.59344213,592.34,590.68,0.3385928]
[1742000353942,0.29439881,591.78,590.68,0.3385928]
[1742000354142,0.33765532,592.32,590.68,0.3385928]
[1742000354341,2.59344213,592.25,590.68,0.3385928]
[1742000354544,0.29433282,591.78,590.68,0.3385928]
[1742000354739,0.33770093,592.24,590.69,0.30703393]
[1742000354941,0.31073789,592.23,590.7,0.33858134]
[1742000355140,0.29434278,591.78,590.7,0.33858134]
[1742000355343,0.33771233,592.22,590.7,0.33858134]
[1742000355542,0.31073838,592.21,590.7,0.33858134]
[1742000355746,0.33772374,592.2,590.7,0.33858134]
[1742000355945,0.31073838,592.19,590.7,0.33858134]
[1742000356144,0.33773514,592.18,590.7,0.33858134]
[1742000356342,0.31073838,592.17,590.7,0.33858134]
[1742000356547,0.33774655,592.16,590.71,1.569]
[1742000356743,0.33774655,592.16,590.72,0.33856988]
[1742000356948,0.31073838,592.15,590.73,0.766]
[1742000357149,0.33775796,592.14,590.74,0.33855841]
[1742000357549,0.31075625,592.13,590.75,0.72]
[1742000357750,0.33776937,592.12,590.76,0.33854695]
[1742000357949,0.31075625,592.11,590.76,0.33854695]
[1742000358150,0.33778078,592.1,590.76,0.33854695]
[1742000358352,0.31075625,592.09,590.76,0.33854695]
[1742000358550,0.33779219,592.08,590.76,0.33854695]
[1742000358751,0.31075625,592.07,590.76,0.33854695]
[1742000358946,0.3378036,592.06,590.76,0.33854695]
[1742000359148,0.31075625,592.05,590.76,0.33854695]
[1742000359350,0.33781501,592.04,590.76,0.33854695]
[1742000359647,0.31075625,592.03,590.76,0.33854695]
[1742000359850,0.33782642,592.02,590.76,0.33854695]
[1742000360050,0.31075625,592.01,590.76,0.33854695]
[1742000360247,0.33783783,592.0,590.76,0.33854695]
[1742000360450,0.31075625,591.99,590.76,0.33854695]
[1742000360651,0.33784925,591.98,590.76,0.33854695]
[1742000360852,0.31075625,591.97,590.76,0.33854695]
[1742000361155,0.33786066,591.96,590.76,0.33854695]
[1742000361350,0.31075625,591.95,590.76,0.33854695]
[1742000361551,0.33787208,591.94,590.76,0.33854695]
[1742000361747,0.31075625,591.93,590.76,0.33854695]
[1742000362753,0.33787208,591.94,590.76,0.33854695]
[1742000362951,0.29438885,591.92,590.76,0.33854695]
[1742000363153,0.31082659,591.91,590.76,0.33854695]
[1742000364150,0.29438885,591.9,590.76,0.33854695]
[1742000364358,0.31082659,591.89,590.76,0.33854695]
[1742000367153,0.31082659,591.93,590.76,0.33854695]
[1742000367353,0.33787208,591.94,590.76,0.33854695]
[1742000367354,0.31082659,591.92,590.76,0.33854695]
[1742000367554,0.31082659,591.91,590.76,0.33854695]
[1742000367754,0.31082659,591.9,590.76,0.33854695]
[1742000367954,0.31082659,591.93,590.76,0.33854695]
[1742000368154,0.31082659,591.92,590.76,0.33854695]
[1742000368354,0.31082659,591.93,590.76,0.33854695]
[1742000368555,0.3108125,591.92,590.76,0.33854695]
[1742000368755,0.3108125,591.93,590.76,0.33854695]
[1742000368957,0.29438636,591.92,590.76,0.33854695]
[1742000369158,0.3108125,591.91,590.76,0.33854695]
[1742000370359,0.31081749,591.9,590.76,0.33854695]
[1742000370554,0.31081749,591.91,590.76,0.33854695]
[1742000370859,0.31081749,591.9,590.76,0.33854695]
[1742000371060,0.31081749,591.91,590.76,0.33854695]
[1742000371260,0.31081749,591.9,590.76,0.33854695]
[1742000371461,0.31081749,591.91,590.76,0.33854695]
[1742000371661,0.31081749,591.9,590.76,0.33854695]
[1742000371862,0.31081749,591.91,590.76,0.33854695]
[1742000372261,0.29438636,591.92,590.76,0.33854695]
[1742000372562,0.31081334,591.91,590.76,0.33854695]
[1742000373164,0.31081334,591.93,590.76,0.33854695]
[1742000373364,0.29438885,591.9,590.76,0.33854695]
[1742000373662,0.31081334,591.89,590.76,0.33854695]
[1742000374267,0.31079579,591.88,590.76,0.33854695]
[1742000374460,0.31079579,591.89,590.76,0.33854695]
[1742000374658,0.31079579,591.87,590.76,0.33854695]
[1742000374861,0.31079579,591.86,590.76,0.33854695]
[1742000375064,0.31079579,591.89,590.76,0.33854695]
[1742000375368,0.31079579,591.88,590.76,0.33854695]
[1742000375666,0.31079579,591.87,590.76,0.33854695]
[1742000375866,0.33787208,591.94,590.76,0.33854695]
[1742000376066,0.31081604,591.93,590.77,0.728]
[1742000378265,0.29438387,591.92,590.77,0.728]
[1742000378666,0.31081604,591.91,590.77,0.728]
[1742000379062,0.31081604,591.93,590.77,0.728]
[1742000379264,0.31081604,591.92,590.77,0.728]
[1742000379462,0.31081604,591.91,590.77,0.728]
[1742000379665,0.31081604,591.93,590.77,1.399]
[1742000379967,0.33787208,591.94,590.77,1.399]
[1742000379968,0.31081201,591.92,590.77,1.399]
[1742000380169,0.31081201,591.93,590.77,1.399]
[1742000380362,0.31081201,591.92,590.77,1.399]
[1742000380564,0.31081201,591.93,590.77,2.012]
[1742000380765,0.31081201,591.92,590.77,2.012]
[1742000381065,0.31081201,591.91,590.77,2.012]
[1742000381273,0.33789491,591.9,590.77,3.869]
[1742000381468,0.31081201,591.89,590.77,3.869]
[1742000382068,0.29440379,591.88,590.77,3.869]
[1742000382262,0.31081201,591.87,590.77,3.869]
[1742000383469,0.31081657,591.86,590.77,3.869]
[1742000383670,0.31081657,591.87,590.77,3.869]
[1742000383872,0.31081657,591.86,590.77,3.869]
[1742000384070,0.31081657,591.87,590.77,3.869]
[1742000384268,0.31081657,591.86,590.77,3.869]
[1742000384469,0.31081657,591.87,590.77,3.869]
[1742000384673,0.31081657,591.86,590.77,4.336]
[1742000384869,0.31081657,591.87,590.77,4.336]
[1742000385071,0.31081657,591.86,590.77,4.336]
[1742000385370,0.29439383,591.85,590.77,4.336]
[1742000385769,0.31081657,591.84,590.77,4.336]
[1742000388066,0.31081657,591.89,590.77,4.336]
[1742000388268,0.29439134,591.83,590.77,4.336]
[1742000388472,0.31081657,591.82,590.77,4.336]
[1742000388867,0.29439134,591.83,590.77,4.336]
[1742000391075,0.33789491,591.9,590.77,4.336]
[1742000391271,0.3107823,591.89,590.77,4.336]
[1742000392474,0.29438387,591.88,590.77,4.336]
[1742000392670,0.3107823,591.87,590.77,4.336]
[1742000393976,0.3107823,591.86,590.77,4.336]
[1742000394175,0.29438636,591.86,590.77,4.336]
[1742000394477,0.3107823,591.85,590.77,4.336]
[1742000396375,0.29438636,591.86,590.77,4.336]
[1742000397474,0.29438636,591.86,590.77,5.37]
[1742000399871,0.29438636,591.86,590.78,0.33853549]
[1742000402472,0.29438636,591.86,590.78,0.80553549]
[1742000402979,0.33789491,591.9,590.78,0.80553549]
[1742000403275,0.33789491,591.9,590.78,1.82653549]
[1742000403473,0.33789491,591.9,590.78,2.67253549]
[1742000403672,0.33789491,591.9,590.78,3.34653549]
[1742000405580,0.31070875,591.89,590.79,0.3069221]
[1742000405781,0.31070875,591.89,590.8,0.33852403]
[1742000406178,0.29434029,591.88,590.8,0.33852403]
[1742000406376,0.29434029,591.88,590.81,0.30689754]
[1742000406680,0.29434029,591.88,590.82,0.33851257]
[1742000407282,0.29434029,591.88,590.83,0.974]
[1742000407488,0.29434029,591.88,590.84,0.33850111]
[1742000408985,0.33789491,591.9,590.84,0.33850111]
[1742000409190,0.29433034,591.87,590.85,1.44885108]
[1742000409488,0.29433034,591.87,590.86,0.33848965]
[1742000410586,0.29433034,591.87,590.87,0.30683415]
[1742000411993,0.33789491,591.9,590.88,0.3384782]
[1742000412294,0.29432038,591.88,590.88,0.3384782]
[1742000412695,0.310685,591.87,590.89,0.30682048]
[1742000413095,0.31069687,591.86,590.9,0.30686432]
[1742000413394,0.29432038,591.88,590.91,0.30686432]
[1742000413395,0.31069687,591.85,590.91,0.30686432]
[1742000413595,0.31069687,591.87,590.89,0.30686432]
[1742000414192,0.29432038,591.88,590.88,0.3384782]
[1742000414993,0.33789491,591.9,590.88,0.3384782]
[1742000415195,0.31068925,591.89,590.89,0.30684242]
[1742000416794,0.33789491,591.9,590.88,0.3384782]
[1742000416999,0.29431789,591.88,590.88,0.3384782]
[1742000417899,0.33789491,591.9,590.88,0.3384782]
[1742000418100,0.29432162,591.88,590.88,0.3384782]
[1742000418701,0.29432162,591.88,590.89,1.37]
[1742000419494,3.29795788,592.54,590.9,0.33846674]
[1742000419697,0.33754134,592.52,590.9,0.33846674]
[1742000419896,0.31062297,592.51,590.9,0.33846674]
[1742000420102,0.33755843,592.49,590.9,0.33846674]
[1742000420303,0.31062297,592.48,590.9,0.33846674]
[1742000420498,0.33757553,592.46,590.9,0.33846674]
[1742000420702,0.31064835,592.45,590.9,0.33846674]
[1742000421004,0.33759262,592.43,590.9,0.33846674]
[1742000421202,0.31064835,592.42,590.9,0.33846674]
[1742000421401,0.33760972,592.4,590.9,0.33846674]
[1742000421599,0.31064835,592.39,590.9,0.33846674]
[1742000421804,0.33762112,592.38,590.9,0.33846674]
[1742000421997,0.31064835,592.37,590.9,0.33846674]
[1742000422201,0.33763252,592.36,590.9,0.33846674]
[1742000422400,0.31063474,592.35,590.9,0.33846674]
[1742000422599,0.33764392,592.34,590.9,0.33846674]
[1742000422803,0.31063474,592.33,590.9,0.33846674]
[1742000423003,0.64828436,592.33,590.9,0.33846674]
[1742000423201,0.31063474,592.32,590.9,0.33846674]
[1742000423502,0.31063474,592.32,590.9,1.23046674]
[1742000424305,0.29422457,592.31,590.9,1.23046674]
[1742000424504,0.31063474,592.3,590.9,1.23046674]
[1742000425602,0.31061285,592.29,590.91,0.3066689]
[1742000425806,0.31061285,592.3,590.92,0.33845529]
[1742000426006,0.31061285,592.29,590.93,0.3066689]
[1742000426210,0.31061285,592.3,590.93,0.3066689]
[1742000426512,0.33767242,592.29,590.94,0.33844383]
[1742000426710,0.31061285,592.28,590.94,0.33844383]
[1742000427012,0.33768382,592.27,590.94,0.33844383]
[1742000427309,0.31061285,592.26,590.94,0.33844383]
[1742000429907,0.31062878,592.25,590.94,0.33844383]
[1742000430103,0.29422955,592.25,590.94,0.33844383]
[1742000430308,0.31062878,592.24,590.94,0.33844383]
[1742000430907,0.31062878,592.24,590.95,0.843]
[1742000431107,0.31062878,592.24,590.96,0.33843238]
[1742000431714,0.31062878,592.24,590.97,1.02]
[1742000431906,0.31062878,592.24,590.98,0.64509441]
[1742000432214,0.31062878,592.24,590.99,0.64508869]
[1742000432412,0.31062878,592.24,591.0,0.30667349]
[1742000433213,0.60485957,592.23,591.01,0.663]
[1742000433407,0.60485957,592.23,591.02,0.30667349]
[1742000433408,0.31062878,592.22,591.02,0.30667349]
[1742000433810,0.31062771,592.21,591.03,0.30674944]
[1742000434006,0.31062771,592.22,591.04,0.30674944]
[1742000434208,0.31062771,592.21,591.02,0.30674944]
[1742000434514,0.29423079,592.23,591.01,0.663]
[1742000434515,0.31062771,592.2,591.01,0.663]
[1742000434713,0.31062771,592.22,591.01,0.663]
[1742000434915,0.31062771,592.21,591.01,0.663]
[1742000435115,0.31062771,592.2,591.01,0.663]
[1742000435312,0.31062771,592.19,591.01,0.663]
[1742000435616,0.31062771,592.18,591.01,0.663]
[1742000436117,0.60487592,592.17,591.01,0.663]
[1742000436318,0.31062771,592.16,591.01,0.663]
[1742000439219,0.31062771,592.26,591.01,0.663]
[1742000439415,0.2942507,592.15,591.01,0.663]
[1742000439621,0.31062771,592.14,591.01,0.663]
[1742000439822,0.31062771,592.24,591.01,0.663]
[1742000440023,0.31062771,592.23,591.01,0.663]
[1742000440219,0.31062771,592.24,591.01,0.663]
[1742000440418,0.31062771,592.23,591.01,0.663]